fUST/lending_fUST_20240515
["ID","MTS","AMOUNT","RATE_DAILY","PERIOD"]
[327018493,1715717432158,-373.37983889,0.00019998,2]
[327018494,1715717432167,-154.81422293,0.00019998,2]
[327018495,1715717432177,-154.81422293,0.00019998,2]
[327018496,1715717432186,-154.81422293,0.00019998,2]
[327018497,1715717432196,-330.6132766,0.00019999,2]
[327018498,1715717432206,-500.0,0.00019999,2]
[327018499,1715717432215,-453.10556886,0.00019999,2]
[327018500,1715717432225,-304.33295769,0.00019999,2]
[327018501,1715717432234,-500.0,0.00019999,2]
[327018502,1715717432244,-500.0,0.00019999,2]
[327018503,1715717432253,-352.44493533,0.00019999,2]
[327018504,1715717432263,-447.13963677,0.00019999,2]
[327018505,1715717432273,-296.21394395,0.00019999,2]
[327018506,1715717432282,-500.0,0.00019999,2]
[327018507,1715717432291,-500.0,0.00019999,2]
[327018508,1715717432301,-500.0,0.00019999,2]
[327018509,1715717432310,-500.0,0.00019999,2]
[327018510,1715717432320,-500.0,0.00019999,2]
[327018511,1715717432330,-550.98950344,0.00019999,2]
[327018512,1715717432340,-500.0,0.00019999,2]
[327018513,1715717432353,-222.06780435,0.0002,2]
[327018514,1715717432363,-154.81422293,0.0002,2]
[327018515,1715717432372,-400.0,0.0002,2]
[327018516,1715717432382,-4918.06453628,0.0002,2]
[327018518,1715717432714,-55746.20216895,0.0002,2]
[327018519,1715717432730,-4171.30746101,0.0002,2]
[327018619,1715717440365,-155.22940498,0.00019999,2]
[327018620,1715717440375,-3146.70837186,0.0002,2]
[327018621,1715717440385,-1647.01590178,0.00020557,2]
[327018622,1715717440396,-531.34928996,0.00020697,2]
[327018623,1715717440406,-484.34146587,0.00020706,2]
[327018624,1715717440416,-446.38699698,0.00020706,2]
[327018625,1715717440426,-656.06973116,0.00020707,2]
[327018626,1715717440436,-7887.74919876,0.00020709,2]
[327018627,1715717440447,-40008.53672489,0.00020711,2]
[327018628,1715717440457,-296.90737003,0.00020911,2]
[327018629,1715717440467,-155.71507156,0.00020911,2]
[327018630,1715717440476,-264.23773842,0.00020911,2]
[327018631,1715717440487,-154.84515485,0.00020911,2]
[327018632,1715717440668,-238.42807022,0.00020911,2]
[327018633,1715717440678,-4351.45770296,0.00020912,2]
[327018634,1715717440687,-527.80934729,0.00021226,2]
[327018635,1715717440698,-166.666666,0.00021918,2]
[327018636,1715717440708,-1415.4550369,0.00021918,2]
[327018637,1715717440717,-3973.46857554,0.00021918,2]
[327018638,1715717440727,-5233.72362095,0.00022,4]
[327018639,1715717440737,-544.33652244,0.000223,2]
[327018640,1715717440747,-531.34928992,0.00022388,2]
[327018641,1715717440756,-166.666666,0.00022431,2]
[327018642,1715717440766,-876.6,0.00022568,2]
[327018643,1715717440775,-740.3,0.00022592,2]
[327018644,1715717440785,-166.666666,0.00022944,2]
[327018645,1715717440795,-309.16525382,0.00023,2]
[327018646,1715717440804,-166.666666,0.00023456,2]
[327018647,1715717440813,-527.80934729,0.00023654,2]
[327018648,1715717440822,-495.0,0.0002382,2]
[327018649,1715717440832,-215.314,0.0002382,2]
[327018650,1715717440841,-1041.46621436,0.000239,2]
[327018651,1715717440851,-166.666666,0.00023969,2]
[327018652,1715717440862,-531.34928992,0.00024079,2]
[327018653,1715717440871,-166.666666,0.00024482,2]
[327018654,1715717440882,-154.82968734,0.000245,2]
[327018655,1715717440892,-240.55955826,0.0002475,2]
[327018656,1715717440902,-198.0,0.00024932,2]
[327018657,1715717440912,-814.585683,0.00024986,2]
[327018658,1715717440922,-16853.64,0.00024986,3]
[327018659,1715717440932,-43529.26302644,0.00024996,2]
[327018685,1715717595510,230.6100049,9.999e-05,2]
[327018686,1715717608849,157.27495146,9.999e-05,2]
[327018687,1715717624088,2106.16453209,0.00015,2]
[327018688,1715717629572,522.76857671,9.999e-05,2]
[327018689,1715717663602,16132.1306259,9.999e-05,2]
[327018690,1715717677539,16132.1306259,9.999e-05,2]
[327018691,1715717697538,5743.70672853,9.999e-05,2]
[327018692,1715717742475,492.60126015,9.999e-05,2]
[327018693,1715718205788,238.60242952,9.999e-05,2]
[327018694,1715718288640,154.79876161,9.999e-05,2]
[327018695,1715718409568,157.27495146,9.999e-05,2]
[327018696,1715718460482,230.6100049,9.999e-05,2]
[327018697,1715718465002,154.79876161,9.999e-05,2]
[327018698,1715718566202,1495.36520031,9.999e-05,2]
[327018733,1715718632454,-238.60242952,0.0001833,2]
[327018734,1715718632464,-549.22987519,0.00018331,2]
[327018735,1715718632477,-2450.77012481,0.00018331,2]
[327018736,1715718632487,-347.15540478,0.000189,2]
[327018737,1715718632496,-173.0,0.00019,2]
[327018738,1715718632505,-173.0,0.00019452,2]
[327018739,1715718632514,-407.50342636,0.000199,2]
[327018740,1715718632524,-154.8710788,0.00019998,2]
[327018741,1715718632533,-1091.88144807,0.00019998,2]
[327018742,1715718632543,-187.69199395,0.00019998,2]
[327018743,1715718632552,-309.8325054,0.00019998,2]
[327018744,1715718632561,-160.62828018,0.00019998,2]
[327018745,1715718632571,-919.03096993,0.00019998,2]
[327018746,1715718632580,-185.99058117,0.00019998,2]
[327018747,1715718632589,-394.55438927,0.00019999,2]
[327018748,1715718632599,-611.76140488,0.0002,2]
[327018749,1715718632608,-8627.74923804,0.0002,2]
[327018750,1715718632617,-154.79876161,0.0002,2]
[327018751,1715718632626,-22285.07613228,0.0002,2]
[327018752,1715718632638,-447.93159272,0.0002,2]
[327018838,1715718640640,-300.326333,0.00019968,2]
[327018839,1715718640650,-40454.94538606,0.0002,2]
[327018840,1715718640663,-4794.32942704,0.0002,2]
[327018841,1715718640673,-11428.23200703,0.0002,2]
[327018842,1715718640684,-173.0,0.00020137,2]
[327018843,1715718640693,-480.05,0.00020903,3]
[327018844,1715718640708,-405.91698719,0.00020913,2]
[327018845,1715718640718,-635.93167065,0.00020913,2]
[327018846,1715718640728,-393.20295773,0.00020913,2]
[327018847,1715718640738,-365.33354371,0.00020913,2]
[327018848,1715718640750,-422.96516506,0.00020913,2]
[327018849,1715718640760,-500.0,0.00020913,2]
[327018850,1715718640770,-500.0,0.00020913,2]
[327018851,1715718640781,-500.0,0.00020913,2]
[327018852,1715718640790,-420.16602516,0.00020913,2]
[327018853,1715718640801,-500.0,0.00020913,2]
[327018854,1715718640810,-500.0,0.00020913,2]
[327018855,1715718640819,-500.0,0.00020913,2]
[327018856,1715718640829,-500.0,0.00020913,2]
[327018857,1715718640838,-500.0,0.00020913,2]
[327018858,1715718640848,-177.0,0.00021144,2]
[327018859,1715718640857,-166.666666,0.00021918,2]
[327018860,1715718640867,-407.50342632,0.0002217,2]
[327018861,1715718640876,-166.666666,0.00022431,2]
[327018862,1715718640886,-817.4,0.00022478,2]
[327018863,1715718640896,-678.6,0.00022492,2]
[327018864,1715718640906,-173.0,0.00022553,2]
[327018865,1715718640915,-166.666666,0.00022944,2]
[327018866,1715718640925,-166.666666,0.00023456,2]
[327018867,1715718640936,-347.15540478,0.000239,2]
[327018868,1715718640946,-150.0,0.00023923,2]
[327018869,1715718640956,-495.0,0.00023923,2]
[327018870,1715718640966,-173.0,0.00023963,2]
[327018871,1715718640975,-166.666666,0.00023969,2]
[327018872,1715718640985,-173.0,0.00024164,2]
[327018873,1715718640995,-407.50342632,0.0002444,2]
[327018874,1715718641005,-166.666666,0.00024482,2]
[327018875,1715718641014,-154.79876161,0.000245,2]
[327018876,1715718641025,-1647.01590178,0.00024773,2]
[327018877,1715718641035,-356.68563937,0.00024892,2]
[327018878,1715718641044,-9106.31,0.00024984,3]
[327018879,1715718641054,-1687.69675439,0.00024992,2]
[327018880,1715718641065,-186.62571484,0.00024992,2]
[327018881,1715718641075,-309.48934953,0.00024992,2]
[327018882,1715718641084,-322.8284298,0.00024992,2]
[327018883,1715718641094,-154.81422293,0.00024993,2]
[327018884,1715718641104,-203.67896343,0.00024994,2]
[327018885,1715718641113,-4340.424067,0.00024994,4]
[327018886,1715718641123,-3727.13060983,0.00024994,2]
[327018887,1715718641133,-52968.9807794,0.00024994,2]
[327018888,1715718641143,-45113.38741784,0.00024994,2]
[327018928,1715718643492,-1009.16276209,0.00024994,2]
[327018941,1715718830274,154.79876161,9.999e-05,2]
[327018942,1715718833976,273.85089148,0.000165,2]
[327018943,1715718842374,708.95161168,9.999e-05,2]
[327018944,1715718844992,522.20632925,9.999e-05,2]
[327018945,1715718845334,158.37912869,9.999e-05,2]
[327018946,1715718886111,154.79876161,9.999e-05,2]
[327018948,1715719009596,1682.5168572,0.00015,2]
[327019863,1715719262566,230.6100049,9.999e-05,2]
[327020051,1715719466822,719.48635081,9.999e-05,2]
[327020053,1715719521688,154.79876161,9.999e-05,2]
[327020058,1715719534241,941.81038936,0.00015,2]
[327020328,1715719832646,-230.6100049,0.00018546,2]
[327020330,1715719832656,-101.77818861,0.00018546,2]
[327020333,1715719832668,-1586.21617874,0.00018546,2]
[327020335,1715719832679,-988.97612298,0.00018546,2]
[327020337,1715719832688,-1008.36263068,0.00018547,2]
[327020339,1715719832697,-329.480201,0.00018649,2]
[327020341,1715719832706,-150.0,0.000189,2]
[327020343,1715719832715,-154.79876161,0.00019,2]
[327020345,1715719832724,-173.0,0.00019,2]
[327020347,1715719832733,-254.68964145,0.00019899,2]
[327020348,1715719832743,-518.32668191,0.00019998,2]
[327020351,1715719832752,-167.86056233,0.00019998,2]
[327020352,1715719832762,-940.23972476,0.00019998,2]
[327020354,1715719832771,-500.0,0.00019998,2]
[327020356,1715719832780,-500.0,0.00019998,2]
[327020358,1715719832789,-500.0,0.00019998,2]
[327020360,1715719832798,-309.0442928,0.00019998,2]
[327020363,1715719832809,-190.9557072,0.00019998,2]
[327020365,1715719832818,-500.0,0.00019998,2]
[327020367,1715719832827,-500.0,0.00019998,2]
[327020369,1715719832837,-301.6080714,0.00019998,2]
[327020372,1715719832856,-198.3919286,0.00019998,2]
[327020374,1715719832865,-266.50004246,0.00019998,2]
[327020376,1715719832874,-365.0,0.00019998,2]
[327020378,1715719832884,-255.39235105,0.00019998,2]
[327020380,1715719832893,-500.0,0.00019998,2]
[327020381,1715719832902,-36089.25697417,0.00019999,2]
[327020384,1715719832912,-56637.95615867,0.00019999,2]
[327020467,1715719838864,-500.0,0.00019998,2]
[327020469,1715719838873,-500.0,0.00019998,2]
[327020470,1715719838882,-500.0,0.00019998,2]
[327020471,1715719838891,-500.0,0.00019998,2]
[327020472,1715719838900,-430.0,0.00019998,2]
[327020473,1715719838909,-2517.35779506,0.00019999,2]
[327020600,1715719840981,-250.49178244,0.00019999,2]
[327020602,1715719840993,-44846.04638159,0.00019999,2]
[327020604,1715719841003,-499.86264339,0.0002,2]
[327020607,1715719841012,-50937.88598715,0.0002,2]
[327020609,1715719841021,-29418.02370885,0.0002,2]
[327020611,1715719841031,-678.26653447,0.00020387,2]
[327020614,1715719841040,-187.816667,0.00020487,2]
[327020619,1715719841063,-8334.95550382,0.00020812,2]
[327020621,1715719841073,-170.382212,0.00021918,2]
[327020623,1715719841088,-309.4430026,0.00022,2]
[327020625,1715719841098,-678.26653443,0.0002214,2]
[327020627,1715719841108,-254.68964145,0.00022169,2]
[327020629,1715719841118,-154.7215013,0.000223,2]
[327020631,1715719841130,-622.0,0.00022473,2]
[327020633,1715719841140,-761.8,0.00022506,2]
[327020635,1715719841150,-170.382212,0.00022559,2]
[327020637,1715719841162,-170.382212,0.000232,2]
[327020639,1715719841172,-170.382212,0.00023841,2]
[327020641,1715719841182,-678.26653443,0.00023894,2]
[327020643,1715719841192,-150.0,0.000239,2]
[327020645,1715719841202,-657.78734396,0.00024325,2]
[327020647,1715719841211,-495.0,0.00024423,2]
[327020649,1715719841221,-254.68964145,0.00024439,2]
[327020651,1715719841231,-170.382212,0.00024482,2]
[327020653,1715719841240,-192.44764661,0.00024746,2]
[327020655,1715719841251,-1647.01590178,0.00024843,2]
[327020657,1715719841260,-155.20290046,0.00024992,2]
[327020659,1715719841271,-847.17482496,0.00024992,2]
[327020661,1715719841281,-260.5,0.00024992,2]
[327020663,1715719841291,-408.82800618,0.00024992,2]
[327020665,1715719841302,-454.88990981,0.00024992,2]
[327020667,1715719841312,-830.01060657,0.00024993,2]
[327020669,1715719841322,-7148.76277856,0.00024994,2]
[327020671,1715719841332,-360.88501057,0.00024994,2]
[327020673,1715719841342,-154.79876161,0.00024994,2]
[327020675,1715719841351,-230.36380265,0.00024994,2]
[327020677,1715719841362,-3973.46857554,0.00024994,2]
[327020679,1715719841372,-894.54564533,0.00024994,2]
[327020681,1715719841382,-309.47389747,0.00024994,2]
[327020683,1715719841392,-527.71870107,0.00024994,2]
[327020685,1715719841402,-309.36574229,0.00024994,2]
[327020687,1715719841412,-273.5782633,0.00024994,2]
[327020689,1715719841422,-230.3649857,0.00024994,2]
[327020691,1715719841431,-159.05317724,0.00024994,2]
[327020693,1715719841441,-521.57806176,0.00024994,2]
[327020695,1715719841450,-1400.60904381,0.00024994,2]
[327020697,1715719841459,-2630.79585312,0.00024994,2]
[327020699,1715719841471,-1687.93431017,0.00024994,2]
[327020701,1715719841480,-400.0,0.00024995,2]
[327020702,1715719841490,-151.0,0.00024995,2]
[327020704,1715719841499,-151.0,0.00024995,2]
[327020706,1715719841509,-151.0,0.00024995,2]
[327020708,1715719841518,-151.0,0.00024995,2]
[327020710,1715719841527,-173.36106,0.00024995,2]
[327020712,1715719841538,-173.36106,0.00024995,2]
[327020714,1715719841547,-504.058347,0.00024995,2]
[327020716,1715719841556,-504.058347,0.00024995,2]
[327020718,1715719841565,-151.0,0.00024995,2]
[327020720,1715719841575,-151.0,0.00024995,2]
[327020722,1715719841584,-168.0,0.00024995,2]
[327020724,1715719841594,-151.0,0.00024995,2]
[327020726,1715719841603,-151.0,0.00024995,2]
[327020728,1715719841613,-151.0,0.00024995,2]
[327020730,1715719841623,-151.0,0.00024995,2]
[327020732,1715719841632,-319.209813,0.00024995,2]
[327020734,1715719841642,-319.209813,0.00024995,2]
[327020736,1715719841652,-517.054494,0.00024995,2]
[327020738,1715719841661,-517.054494,0.00024995,2]
[327020740,1715719841672,-259.070683,0.00024995,2]
[327020742,1715719841682,-259.070683,0.00024995,2]
[327020744,1715719841691,-151.0,0.00024995,2]
[327020746,1715719841702,-95654.77747176,0.00024996,2]
[327020748,1715719841716,-18177.01598421,0.00024996,2]
[327020750,1715719841726,-151.0,0.00024996,2]
[327020752,1715719841737,-151.0,0.00024996,2]
[327020754,1715719841746,-151.0,0.00024996,2]
[327020756,1715719841756,-151.0,0.00024996,2]
[327020758,1715719841766,-151.0,0.00024996,2]
[327020760,1715719841775,-151.0,0.00024996,2]
[327020762,1715719841785,-151.0,0.00024996,2]
[327020764,1715719841794,-151.0,0.00024996,2]
[327020766,1715719841804,-173.36106,0.00024996,2]
[327020768,1715719841814,-173.36106,0.00024996,2]
[327020770,1715719841824,-504.058347,0.00024996,2]
[327020772,1715719841834,-504.058347,0.00024996,2]
[327020774,1715719841846,-151.0,0.00024996,2]
[327020776,1715719841855,-151.0,0.00024996,2]
[327020777,1715719841865,-151.0,0.00024996,2]
[327020779,1715719841876,-151.0,0.00024996,2]
[327020781,1715719841886,-203.523527,0.00024996,2]
[327020782,1715719841899,-297.084048,0.00024996,2]
[327020783,1715719841908,-319.209813,0.00024996,2]
[327020784,1715719841920,-319.209813,0.00024996,2]
[327020785,1715719841931,-275.54117181,0.00024996,2]
[327020786,1715719841946,-241.51332219,0.00024996,2]
[327020787,1715719841957,-517.054494,0.00024996,2]
[327020788,1715719841967,-259.070683,0.00024996,2]
[327020789,1715719841977,-259.070683,0.00024996,2]
[327020790,1715719841988,-151.0,0.00024996,2]
[327020791,1715719841998,-159.29570288,0.00024998,2]
[327020792,1715719842008,-100191.7552656,0.00025,2]
[327020827,1715719846688,-230.0349782,0.00019998,2]
[327020828,1715719846702,-398.3850218,0.00025,2]
[327020994,1715720030486,1896.23906673,9.999e-05,2]
[327021005,1715720085127,2088.41282638,9.999e-05,2]
[327021006,1715720101117,693.98381718,9.999e-05,2]
[327021167,1715720430977,447.49704798,9.999e-05,2]
[327021190,1715720489443,719.48635081,9.999e-05,2]
[327021420,1715720952364,2304.3919857,0.00016875,2]
[327021421,1715720996851,164.7401,0.00016871,2]
[327021435,1715721031790,-386.01217285,0.00017483,2]
[327021436,1715721031827,-2674.25229543,0.00017483,2]
[327021437,1715721031837,-2259.4949604,0.00017484,2]
[327021438,1715721031846,-271.30661378,0.00017798,2]
[327021439,1715721031855,-3000.0,0.00017868,2]
[327021440,1715721031865,-308.86185965,0.00017895,2]
[327021441,1715721032110,-230.418329,0.00017895,2]
[327021442,1715721032120,-13845.50754329,0.00017897,2]
[327021533,1715721040114,-8612.51141072,0.00017897,2]
[327021787,1715721287768,159.18102595,0.00016978,2]
[327021828,1715721478067,159.1810259,0.00016978,2]
[327021830,1715721516907,6125.116291,0.00016743,2]
[327021832,1715721524654,164.7401,0.00016462,2]
[327021834,1715721596843,271.30661378,0.00016978,2]
[327021835,1715721619523,-1089.247401,0.00017073,2]
[327021836,1715721653418,159.1810259,0.00016978,2]
[327021837,1715721692995,24890.0,0.00016486,2]
[327021838,1715721731505,236.36877291,9.999e-05,2]
[327021839,1715721812980,3000.0,0.0001657,2]
[327021840,1715721881455,492.7178496,0.00016623,2]
[327021841,1715721998819,238.60242952,9.999e-05,2]
[327021842,1715722014180,909.01656904,9.999e-05,2]
[327021843,1715722038422,2259.4949604,0.00016763,2]
[327021844,1715722069556,447.49704798,9.999e-05,2]
[327021845,1715722087712,399.720358,0.00016722,2]
[327021912,1715722232355,-2632.55159095,0.00017052,2]
[327021913,1715722232364,-3060.26446828,0.00017053,2]
[327021914,1715722232374,-1716.72807354,0.00017075,2]
[327021915,1715722232383,-209.30733502,0.00017075,2]
[327021916,1715722232392,-242.15918849,0.00017075,2]
[327021917,1715722232402,-308.86185965,0.00017075,2]
[327021918,1715722232411,-230.418329,0.00017075,2]
[327021919,1715722232420,-395.63561468,0.00017075,2]
[327021920,1715722232430,-378.06457418,0.00017075,2]
[327021921,1715722232439,-236.12447453,0.00017075,2]
[327021922,1715722232448,-194.15117099,0.00017075,2]
[327021923,1715722232458,-186.46371228,0.00017076,2]
[327021924,1715722232467,-1647.01590178,0.00017746,2]
[327021925,1715722232478,-217.04529104,0.00017798,2]
[327021926,1715722232488,-159.1810259,0.00017798,2]
[327021927,1715722232498,-309.47389438,0.00017895,2]
[327021928,1715722232507,-330.05398704,0.00017895,2]
[327021929,1715722232517,-253.50110628,0.00017895,2]
[327021930,1715722232527,-238.42807022,0.00017895,2]
[327021931,1715722232537,-896.17200352,0.00017895,2]
[327021932,1715722232547,-446.24337691,0.00017895,2]
[327021933,1715722232556,-667.82273125,0.00017895,2]
[327021934,1715722232566,-1935.05026464,0.00017895,2]
[327021935,1715722232576,-718.49356952,0.00017896,2]
[327021936,1715722232586,-442.86248838,0.00017897,2]
[327021937,1715722232594,-104251.85211776,0.00017897,2]
[327021938,1715722232604,-24059.50464945,0.00017898,2]
[327021939,1715722232613,-895.23409997,0.00018,2]
[327021940,1715722232624,-718.48788165,0.00018894,2]
[327021941,1715722232633,-1750.35287687,0.000189,2]
[327021942,1715722232643,-154.79876161,0.00019,2]
[327021943,1715722232652,-185.0,0.00019,2]
[327021944,1715722232662,-500.0,0.00019178,2]
[327021945,1715722232672,-500.0,0.00019178,2]
[327021946,1715722232681,-500.0,0.00019178,2]
[327021947,1715722232691,-500.0,0.00019178,2]
[327021948,1715722232701,-470.01942094,0.00019178,2]
[327021965,1715722238058,-153.30728505,0.00019178,2]
[327021967,1715722238067,-500.0,0.00019178,2]
[327021969,1715722238077,-502.66751287,0.00019178,2]
[327021970,1715722238086,-379.95001274,0.00019178,2]
[327021971,1715722238095,-270.0,0.00019178,2]
[327021972,1715722238105,-500.0,0.00019178,2]
[327021973,1715722238114,-500.0,0.00019178,2]
[327021974,1715722238124,-500.0,0.00019178,2]
[327021975,1715722238134,-500.0,0.00019178,2]
[327021976,1715722238143,-500.0,0.00019178,2]
[327021977,1715722238152,-500.0,0.00019178,2]
[327021978,1715722238162,-500.0,0.00019178,2]
[327021979,1715722238172,-181.27078502,0.00019178,2]
[327021980,1715722238182,-273.56013292,0.00019178,2]
[327021981,1715722238192,-384.44634131,0.00019178,2]
[327021982,1715722238201,-500.0,0.00019178,2]
[327021983,1715722238211,-455.03221586,0.00019178,2]
[327021984,1715722238223,-424.62330338,0.00019178,2]
[327021985,1715722238232,-403.81520662,0.00019178,2]
[327021986,1715722238241,-400.96772929,0.00019178,2]
[327021987,1715722238250,-500.0,0.00019178,2]
[327021988,1715722238260,-500.0,0.00019178,2]
[327021989,1715722238269,-492.41026879,0.00019178,2]
[327021990,1715722238278,-500.0,0.00019178,2]
[327021991,1715722238288,-170.65522477,0.00019178,2]
[327021992,1715722238297,-574.09379486,0.00019178,2]
[327021993,1715722238307,-422.84292136,0.00019178,2]
[327021994,1715722238317,-411.16416193,0.00019178,2]
[327021995,1715722238327,-467.95175925,0.00019178,2]
[327021996,1715722238337,-501.95534521,0.00019178,2]
[327021997,1715722238347,-500.0,0.00019178,2]
[327021998,1715722238357,-500.0,0.00019178,2]
[327021999,1715722238366,-496.98309699,0.00019178,2]
[327022000,1715722238376,-545.56632594,0.00019178,2]
[327022001,1715722238386,-500.0,0.00019178,2]
[327022002,1715722238396,-500.0,0.00019178,2]
[327022003,1715722238406,-500.0,0.00019178,2]
[327022004,1715722238416,-500.0,0.00019178,2]
[327022005,1715722238425,-500.0,0.00019178,2]
[327022006,1715722238435,-195.01380679,0.00019178,2]
[327022007,1715722238445,-187.816667,0.00019178,2]
[327022008,1715722238455,-307.60040436,0.0002,2]
[327022009,1715722238465,-10802.91662304,0.0002,2]
[327022010,1715722238490,-1759.56820923,0.0002,2]
[327022030,1715722240449,-1.88e-06,0.0002,2]
[327022097,1715722302326,584.90676898,9.999e-05,2]
[327022187,1715723433735,-7205.08929412,0.00017249,2]
[327022189,1715723433747,-38681.72513117,0.00017249,2]
[327022213,1715723435667,207.09583742,9.999e-05,2]
[327022313,1715723438546,156.14987174,9.999e-05,2]
[327022783,1715723443595,1094.19937552,9.999e-05,2]
[327025063,1715723655675,328.400042,0.00016411,2]
[327025064,1715723741123,342.02290313,9.999e-05,2]
[327025065,1715723798212,346.42,0.00010959,2]
[327025066,1715723850072,173.21,0.00010959,2]
[327025067,1715723912089,359.65,0.00010959,2]
[327025068,1715723984441,179.83,0.00010959,2]
[327025069,1715724046492,539.5,0.00010959,2]
[327025070,1715724154221,164.200021,0.00016411,2]
[327025071,1715724206793,1647.01590178,0.00016962,2]
[327025072,1715724250057,17801.2197632,0.00016248,2]
[327025073,1715724549212,584.90676898,9.999e-05,2]
[327025074,1715724553054,930.78580745,0.00014,2]
[327025075,1715724571011,169.92464768,0.00016382,2]
[327025076,1715724575423,1358.53942485,9.999e-05,2]
[327025077,1715724577515,1896.23906673,9.999e-05,2]
[327025078,1715724584474,242.04899326,9.999e-05,2]
[327025079,1715724586958,1337.93312201,9.999e-05,2]
[327025080,1715724606283,817.58871518,9.999e-05,2]
[327025081,1715724622733,383.323732,0.00016204,2]
[327025255,1715724640982,-2106.16453209,0.00017143,2]
[327025257,1715724640992,-7889.12419971,0.00017144,2]
[327025259,1715724641002,-165.35574482,0.00017146,2]
[327025261,1715724641011,-344.1558436,0.00017147,2]
[327025263,1715724641020,-241.80866288,0.00017241,2]
[327025265,1715724641030,-1337.93312201,0.00017241,2]
[327025267,1715724641040,-818.6619456,0.00017241,2]
[327025269,1715724641050,-819.79673058,0.00017241,2]
[327025271,1715724641059,-584.61198334,0.00017242,2]
[327025273,1715724641069,-104251.85211776,0.00017243,2]
[327025275,1715724641078,-719.05539053,0.00017244,2]
[327025277,1715724641087,-303.6356596,0.00017244,2]
[327025279,1715724641096,-1042.0,0.00017244,2]
[327025281,1715724641106,-155.91488492,0.00017244,2]
[327025283,1715724641115,-19180.69214996,0.00017244,2]
[327025285,1715724641124,-782.96488494,0.00017244,2]
[327025287,1715724641133,-522.19690124,0.00017244,2]
[327025288,1715724641142,-575.00185176,0.00017244,2]
[327025289,1715724641150,-404.44434711,0.00017244,2]
[327025290,1715724641159,-320.461948,0.00017245,2]
[327025291,1715724641168,-1882.54248217,0.00017245,2]
[327025292,1715724641179,-14107.98316322,0.00017245,2]
[327025293,1715724641188,-194.23254452,0.00017245,2]
[327025294,1715724641197,-9599.81381818,0.00017247,2]
[327025295,1715724641206,-447.20436467,0.00017248,2]
[327025296,1715724641215,-569.26502482,0.00017248,2]
[327025297,1715724641224,-253.28915843,0.00017248,2]
[327025298,1715724641233,-1353.92561383,0.0001745,2]
[327025299,1715724641242,-20049.58720787,0.00017898,2]
[327025300,1715724641251,-895.23409997,0.00018,2]
[327025301,1715724641260,-816.36645529,0.00018,2]
[327025302,1715724641269,-154.8710788,0.00018272,2]
[327025303,1715724641278,-1539.23749693,0.000189,2]
[327025304,1715724641287,-154.84515485,0.00019,2]
[327025305,1715724641295,-184.3951489,0.000191,2]
[327025306,1715724641305,-500.0,0.00019178,2]
[327025307,1715724641314,-394.55438927,0.00019178,2]
[327025308,1715724641323,-500.0,0.00019178,2]
[327025309,1715724641332,-500.0,0.00019178,2]
[327025310,1715724641341,-500.0,0.00019178,2]
[327025311,1715724641350,-577.67127365,0.00019178,2]
[327025312,1715724641359,-500.0,0.00019178,2]
[327025314,1715724641368,-500.0,0.00019178,2]
[327025316,1715724641378,-207.49822202,0.00019178,2]
[327025318,1715724641387,-181.21839487,0.00019178,2]
[327025320,1715724641396,-500.0,0.00019178,2]
[327025322,1715724641406,-448.09985397,0.00019178,2]
[327025324,1715724641415,-623.02839232,0.00019178,2]
[327025326,1715724641424,-287.42366776,0.00019178,2]
[327025328,1715724641434,-500.0,0.00019178,2]
[327025330,1715724641445,-344.81713548,0.00019178,2]
[327025332,1715724641455,-549.0949291,0.00019178,2]
[327025334,1715724641464,-286.99801179,0.00019178,2]
[327025336,1715724641473,-309.48934336,0.00019429,2]
[327025338,1715724641483,-214.09800685,0.00019799,2]
[327025340,1715724641492,-262.63793798,0.00019998,2]
[327025342,1715724641501,-824.22828168,0.00019998,2]
[327025344,1715724641511,-187.69199395,0.00019998,2]
[327025346,1715724641520,-309.8325054,0.00019998,2]
[327025348,1715724641529,-160.62828018,0.00019998,2]